[Event "44th Chess Olympiad Open 2022"]
[Site "Chennai"]
[Date "2022.08.05"]
[Round "7.37"]
[White "Shaw, Jaden"]
[Black "Montes Orozco, Miguel Angel"]
[Result "0-1"]
[WhiteElo "1930"]
[BlackElo "2070"]
[Annotator "NA RC"]
[PlyCount "120"]
[EventDate "2022.??.??"]
[TimeControl "60"]

1. e4 {[%emt 0:00:52]} e5 {[%emt 0:00:09]} 2. Nf3 {[%emt 0:00:27]} Nc6 {
[%emt 0:00:07]} 3. Bb5 {[%emt 0:00:41]} a6 {[%emt 0:00:07]} 4. Bxc6 {[%emt 0:
00:00]} dxc6 {[%emt 0:00:27]} 5. O-O {[%emt 0:00:45]} Ne7 {[%emt 0:03:37]} 6.
Nxe5 {[%emt 0:02:49]} Qd4 {[%emt 0:00:08]} 7. Qh5 {[%emt 0:05:53]} g6 {[%emt 0:
00:00]} 8. Qg5 {[%emt 0:00:25]} Bg7 {[%emt 0:00:26]} 9. Nf3 {[%emt 0:01:20]}
Qxe4 {[%emt 0:00:08]} 10. Re1 {[%emt 0:03:13]} Qb4 {[%emt 0:01:36]} 11. d4 {
[%emt 0:03:37]} Be6 {[%emt 0:08:08]} 12. c3 {[%emt 0:01:14]} Qb5 {[%emt 0:00:
00]} 13. Na3 {[%emt 0:06:04]} Qd5 {[%emt 0:25:09]} 14. Bf4 {[%emt 0:25:00]} h6
{[%emt 0:00:00]} 15. Qxd5 {[%emt 0:00:23]} Nxd5 {[%emt 0:00:00]} 16. Be5 {
[%emt 0:00:17]} O-O {[%emt 0:00:00]} 17. c4 {[%emt 0:03:23]} Nb6 {[%emt 0:00:
00]} 18. b3 {[%emt 0:00:37]} Rfc8 {[%emt 0:02:59]} 19. Nb1 {[%emt 0:09:46]} a5
{[%emt 0:19:03]} 20. Nc3 {[%emt 0:10:10]} Bf8 {[%emt 0:03:45]} 21. Ne4 {
[%emt 0:02:49]} Nd7 {[%emt 0:01:46]} 22. Nf6+ {[%emt 0:03:51]} Nxf6 {[%emt 0:
00:00]} 23. Bxf6 {[%emt 0:00:02]} a4 {[%emt 0:01:46]} 24. Ne5 {[%emt 0:01:30]}
axb3 {[%emt 0:03:53]} 25. axb3 {[%emt 0:00:11]} Bb4 {[%emt 0:00:04]} 26. Red1 {
[%emt 0:04:58]} Bf5 {[%emt 0:08:32]} 27. g4 {[%emt 0:05:18]} Be4 {[%emt 0:00:
00]} 28. Kf1 {[%emt 0:01:27]} Bc2 {[%emt 0:03:47]} 29. Rdc1 {[%emt 0:00:43]}
Bxb3 {[%emt 0:00:15]} 30. Rcb1 {[%emt 0:00:28]} Rxa1 {[%emt 0:01:16]} 31. Rxa1
{[%emt 0:00:01]} Bd6 {[%emt 0:01:48]} 32. c5 {[%emt 0:00:52]} Bxe5 {[%emt 0:00:
00]} 33. Bxe5 {[%emt 0:00:43]} Bc4+ {[%emt 0:00:49]} 34. Kg2 {[%emt 0:00:19]}
Bd5+ {[%emt 0:00:14]} 35. Kg3 {[%emt 0:00:11]} g5 {[%emt 0:02:17]} 36. f4 {
[%emt 0:02:33]} b5 {[%emt 0:01:44]} 37. fxg5 {[%emt 0:04:46]} hxg5 {[%emt 0:00:
00]} 38. h4 {[%emt 0:00:01]} gxh4+ {[%emt 0:01:25]} 39. Kxh4 {[%emt 0:00:02]}
b4 {[%emt 0:01:39]} 40. Rb1 {[%emt 0:00:23]} b3 {[%emt 0:00:04]} 41. Rb2 {
[%emt 0:30:50]} Ra8 {[%emt 0:31:37]} 42. Bf4 {[%emt 0:00:00]} Ra2 {[%emt 0:00:
00]} 43. Bc1 {[%emt 0:00:00]} Ra1 {[%emt 0:00:00]} 44. Bd2 {[%emt 0:00:00]} Be6
{[%emt 0:00:00]} 45. d5 {[%emt 0:08:18]} Bxd5 {[%emt 0:00:00]} 46. Kg5 {
[%emt 0:00:00]} Be6 {[%emt 0:00:00]} 47. Kf6 {[%emt 0:00:00]} Kf8 {[%emt 0:00:
00]} 48. g5 {[%emt 0:00:00]} Ke8 {[%emt 0:00:00]} 49. Ke5 {[%emt 0:00:00]} Rf1
{[%emt 0:01:50]} 50. Ke4 {[%emt 0:00:00]} Bf5+ {[%emt 0:00:22]} 51. Ke5 {
[%emt 0:00:00]} Bc2 {[%emt 0:00:08]} 52. Kd4 {[%emt 0:00:00]} Kd7 {[%emt 0:00:
00]} 53. Kc4 {[%emt 0:00:00]} Ke6 {[%emt 0:00:15]} 54. Be3 {[%emt 0:00:00]} Ke5
{[%emt 0:00:34]} 55. Bd4+ {[%emt 0:00:58]} Ke4 {[%emt 0:00:06]} 56. Bf6 {
[%emt 0:00:00]} Rxf6 {[%emt 0:00:24]} 57. gxf6 {[%emt 0:00:00]} Ke5 {[%emt 0:
00:00]} 58. Kc3 {[%emt 0:00:00]} Kxf6 {[%emt 0:00:10]} 59. Kd4 {[%emt 0:00:00]}
Ke6 {[%emt 0:00:04]} 60. Ke3 {[%emt 0:00:00]} Kd5 {[%emt 0:00:05]} 0-1

[Event "44th Chess Olympiad Open 2022"]
[Site "Chennai"]
[Date "2022.08.05"]
[Round "7.42"]
[White "Hadj Kholti, Yasser"]
[Black "Damianou, Ioannis"]
[Result "0-1"]
[WhiteElo "1871"]
[BlackElo "2153"]
[Annotator "ChessBase"]
[PlyCount "75"]
[EventDate "2022.??.??"]
[TimeControl "60"]

1. e4 {[%emt 0:00:03]} c5 {[%emt 0:00:08]} 2. Nf3 {[%emt 0:00:08]} Nc6 {
[%emt 0:00:06]} 3. d4 {[%emt 0:00:25]} cxd4 {[%emt 0:00:06]} 4. Nxd4 {[%emt 0:
00:00]} e6 {[%emt 0:00:03]} 5. c4 {[%emt 0:00:22]} Nxd4 {[%emt 0:02:37]} 6.
Qxd4 {[%emt 0:00:06]} Ne7 {[%emt 0:00:05]} 7. Nc3 {[%emt 0:06:28]} Nc6 {
[%emt 0:00:08]} 8. Qd3 {[%emt 0:03:47]} Bc5 {[%emt 0:03:51]} 9. Be2 {[%emt 0:
00:00]} d6 {[%emt 0:01:48]} 10. O-O {[%emt 0:01:08]} O-O {[%emt 0:00:24]} 11.
a3 {[%emt 0:09:38]} a6 {[%emt 0:03:29]} 12. b4 {[%emt 0:01:38]} Ba7 {[%emt 0:
00:00]} 13. Be3 {[%emt 0:15:30]} e5 {[%emt 0:16:01]} 14. Rad1 {[%emt 0:10:12]}
Nd4 {[%emt 0:00:00]} 15. f4 {[%emt 0:01:47]} Be6 {[%emt 0:09:46]} 16. fxe5 {
[%emt 0:09:04]} dxe5 {[%emt 0:10:55]} 17. c5 {[%emt 0:04:42]} b6 {[%emt 0:00:
00]} 18. Bxd4 {[%emt 0:02:10]} Qxd4+ {[%emt 0:05:10]} 19. Qxd4 {[%emt 0:19:23]}
exd4 {[%emt 0:00:08]} 20. Nd5 {[%emt 0:01:07]} bxc5 {[%emt 0:06:09]} 21. Ne7+ {
[%emt 0:05:00]} Kh8 {[%emt 0:00:06]} 22. Bxa6 {[%emt 0:00:15]} Bb6 {[%emt 0:00:
00]} 23. Bb5 {[%emt 0:03:16]} Rxa3 {[%emt 0:04:15]} 24. bxc5 {[%emt 0:00:55]}
Bxc5 {[%emt 0:00:06]} 25. Nd5 {[%emt 0:00:27]} f5 {[%emt 0:03:20]} 26. Nf4 {
[%emt 0:01:38]} Bb3 {[%emt 0:02:15]} 27. Rc1 {[%emt 0:00:15]} Ba7 {[%emt 0:00:
00]} 28. exf5 {[%emt 0:00:30]} d3+ {[%emt 0:01:04]} 29. Kh1 {[%emt 0:00:03]} d2
{[%emt 0:00:05]} 30. Rc3 {[%emt 0:00:03]} g5 {[%emt 0:02:38]} 31. Ne6 {[%emt 0:
00:00]} Bxe6 {[%emt 0:02:14]} 32. Rxa3 {[%emt 0:00:04]} Rxf5 {[%emt 0:00:16]}
33. Raa1 {[%emt 0:01:10]} Rxb5 {[%emt 0:01:15]} 34. Rxa7 {[%emt 0:00:20]} Rd5 {
[%emt 0:00:39]} 35. Raa1 {[%emt 0:01:17]} Bg4 {[%emt 0:00:48]} 36. Rad1 {
[%emt 0:01:25]} Bxd1 {[%emt 0:00:08]} 37. Rxd1 {[%emt 0:00:02]} Re5 {[%emt 0:
00:00]} 38. Ra1 {[%emt 0:00:04]} 0-1

[Event "44th Chess Olympiad Open 2022"]
[Site "Chennai"]
[Date "2022.08.05"]
[Round "7.42"]
[White "Antoniou, Rafail"]
[Black "Zrikem, Nassim"]
[Result "0-1"]
[WhiteElo "1817"]
[BlackElo "2075"]
[Annotator "NA RC"]
[PlyCount "68"]
[EventDate "2022.??.??"]
[TimeControl "60"]

1. e4 {[%emt 0:00:20]} e5 {[%emt 0:00:14]} 2. Nf3 {[%emt 0:00:16]} Nc6 {
[%emt 0:00:14]} 3. Bc4 {[%emt 0:00:17]} Nf6 {[%emt 0:00:36]} 4. d3 {[%emt 0:00:
00]} Be7 {[%emt 0:00:20]} 5. Nc3 {[%emt 0:00:57]} d6 {[%emt 0:00:30]} 6. O-O {
[%emt 0:00:19]} Na5 {[%emt 0:00:38]} 7. h3 {[%emt 0:09:39]} c6 {[%emt 0:04:01]}
8. a4 {[%emt 0:05:49]} Nxc4 {[%emt 0:05:42]} 9. dxc4 {[%emt 0:00:03]} Qc7 {
[%emt 0:01:11]} 10. Qe2 {[%emt 0:01:50]} h6 {[%emt 0:01:17]} 11. Be3 {[%emt 0:
00:00]} g5 {[%emt 0:03:55]} 12. Nd2 {[%emt 0:08:29]} Rg8 {[%emt 0:03:59]} 13.
g4 {[%emt 0:11:05]} Nd7 {[%emt 0:03:53]} 14. Nb3 {[%emt 0:04:27]} a5 {[%emt 0:
00:00]} 15. Rad1 {[%emt 0:08:41]} b6 {[%emt 0:00:17]} 16. Rd2 {[%emt 0:01:03]}
Nf8 {[%emt 0:00:25]} 17. f3 {[%emt 0:02:49]} Ne6 {[%emt 0:01:44]} 18. Nc1 {
[%emt 0:01:23]} Nf4 {[%emt 0:01:11]} 19. Bxf4 {[%emt 0:00:34]} gxf4 {[%emt 0:
00:00]} 20. Nd3 {[%emt 0:00:51]} Be6 {[%emt 0:00:08]} 21. b3 {[%emt 0:00:19]}
h5 {[%emt 0:00:06]} 22. Rf2 {[%emt 0:07:18]} Rh8 {[%emt 0:02:36]} 23. Rh2 {
[%emt 0:02:49]} Bh4 {[%emt 0:02:30]} 24. Nf2 {[%emt 0:05:38]} Ke7 {[%emt 0:00:
00]} 25. Kg2 {[%emt 0:01:03]} Rag8 {[%emt 0:00:21]} 26. Rd1 {[%emt 0:01:24]}
Qd7 {[%emt 0:01:42]} 27. Nd5+ {[%emt 0:01:47]} cxd5 {[%emt 0:02:23]} 28. cxd5 {
[%emt 0:00:03]} Bxg4 {[%emt 0:00:06]} 29. hxg4 {[%emt 0:00:41]} Bxf2 {[%emt 0:
00:00]} 30. Qxf2 {[%emt 0:00:20]} hxg4 {[%emt 0:00:10]} 31. Rxh8 {[%emt 0:00:
00]} gxf3+ {[%emt 0:01:40]} 32. Kf1 {[%emt 0:00:39]} Rxh8 {[%emt 0:00:06]} 33.
Qxf3 {[%emt 0:00:08]} Rh3 {[%emt 0:00:09]} 34. Qe2 {[%emt 0:03:03]} Rh1+ {
[%emt 0:00:16]} 0-1

[Event "44th Chess Olympiad Open 2022"]
[Site "Chennai"]
[Date "2022.08.05"]
[Round "7.43"]
[White "Sultan, Ibrahim"]
[Black "Chaves Sanchez, Gabriel A"]
[Result "1-0"]
[WhiteElo "2108"]
[BlackElo "2125"]
[Annotator "NA"]
[PlyCount "117"]
[EventDate "2022.??.??"]
[TimeControl "60"]

1. d4 {[%emt 0:00:15]} Nf6 {[%emt 0:00:23]} 2. c4 {[%emt 0:00:07]} e6 {[%emt 0:
00:00]} 3. Nf3 {[%emt 0:00:17]} d5 {[%emt 0:00:19]} 4. Nc3 {[%emt 0:00:10]} Be7
{[%emt 0:00:19]} 5. Bf4 {[%emt 0:00:06]} O-O {[%emt 0:02:18]} 6. e3 {[%emt 0:
00:00]} b6 {[%emt 0:06:11]} 7. cxd5 {[%emt 0:01:34]} Nxd5 {[%emt 0:01:11]} 8.
Nxd5 {[%emt 0:10:25]} exd5 {[%emt 0:09:48]} 9. Bd3 {[%emt 0:05:26]} c5 {
[%emt 0:03:22]} 10. dxc5 {[%emt 0:13:19]} bxc5 {[%emt 0:00:37]} 11. O-O {
[%emt 0:00:08]} Nc6 {[%emt 0:07:08]} 12. Rc1 {[%emt 0:00:15]} Be6 {[%emt 0:00:
00]} 13. Qe2 {[%emt 0:06:02]} Qb6 {[%emt 0:05:10]} 14. Rfd1 {[%emt 0:00:25]} h6
{[%emt 0:08:19]} 15. Bb1 {[%emt 0:00:28]} Rac8 {[%emt 0:06:50]} 16. a3 {
[%emt 0:13:10]} a5 {[%emt 0:07:14]} 17. e4 {[%emt 0:02:35]} d4 {[%emt 0:01:47]}
18. e5 {[%emt 0:00:28]} c4 {[%emt 0:06:13]} 19. Qe4 {[%emt 0:00:42]} d3 {
[%emt 0:01:09]} 20. Ba2 {[%emt 0:05:39]} Bc5 {[%emt 0:11:59]} 21. Bxc4 {
[%emt 0:03:18]} Bxf2+ {[%emt 0:00:37]} 22. Kf1 {[%emt 0:00:19]} Bxc4 {[%emt 0:
00:00]} 23. Rxc4 {[%emt 0:00:25]} Ne7 {[%emt 0:00:58]} 24. Rxd3 {[%emt 0:02:43]
} Rxc4 {[%emt 0:04:37]} 25. Qxc4 {[%emt 0:00:05]} Ng6 {[%emt 0:00:36]} 26. Rd6
{[%emt 0:01:34]} Qc5 {[%emt 0:00:50]} 27. Rc6 {[%emt 0:01:52]} Qxc4+ {[%emt 0:
00:00]} 28. Rxc4 {[%emt 0:00:05]} Nxf4 {[%emt 0:00:43]} 29. Rxf4 {[%emt 0:00:
00]} Be3 {[%emt 0:00:55]} 30. Rc4 {[%emt 0:00:15]} Rb8 {[%emt 0:00:20]} 31. b4
{[%emt 0:00:48]} axb4 {[%emt 0:00:28]} 32. axb4 {[%emt 0:00:08]} Rb5 {[%emt 0:
00:00]} 33. Ke2 {[%emt 0:00:15]} Bb6 {[%emt 0:00:14]} 34. Kd3 {[%emt 0:00:41]}
Kh7 {[%emt 0:02:13]} 35. Rf4 {[%emt 0:03:08]} Rd5+ {[%emt 0:01:04]} 36. Kc4 {
[%emt 0:00:06]} Rd7 {[%emt 0:00:11]} 37. Kb5 {[%emt 0:00:14]} Bc7 {[%emt 0:00:
00]} 38. Kc6 {[%emt 0:00:42]} Re7 {[%emt 0:00:22]} 39. b5 {[%emt 0:00:37]} Bd8
{[%emt 0:03:00]} 40. Rd4 {[%emt 0:03:45]} Rc7+ {[%emt 0:00:31]} 41. Kb6 {
[%emt 0:30:20]} Rc8+ {[%emt 0:08:21]} 42. Kb7 {[%emt 0:00:00]} Rc5 {[%emt 0:00:
00]} 43. Rxd8 {[%emt 0:00:00]} Rxb5+ {[%emt 0:00:04]} 44. Kc6 {[%emt 0:00:00]}
Rb2 {[%emt 0:00:14]} 45. Rd2 {[%emt 0:00:00]} Rb4 {[%emt 0:00:03]} 46. Kd5 {
[%emt 0:00:00]} Kg6 {[%emt 0:00:19]} 47. Nd4 {[%emt 0:00:00]} Ra4 {[%emt 0:00:
00]} 48. Rd3 {[%emt 0:00:00]} Ra5+ {[%emt 0:00:39]} 49. Ke4 {[%emt 0:00:00]}
Ra4 {[%emt 0:00:11]} 50. Rg3+ {[%emt 0:00:00]} Kh7 {[%emt 0:00:07]} 51. Kd5 {
[%emt 0:00:00]} g6 {[%emt 0:01:38]} 52. Nc6 {[%emt 0:00:00]} Ra2 {[%emt 0:00:
00]} 53. Kd6 {[%emt 0:00:00]} Kg7 {[%emt 0:00:56]} 54. Ke7 {[%emt 0:00:00]} Re2
{[%emt 0:02:22]} 55. Rf3 {[%emt 0:00:00]} Rxg2 {[%emt 0:00:33]} 56. Rxf7+ {
[%emt 0:00:00]} Kg8 {[%emt 0:00:07]} 57. e6 {[%emt 0:00:00]} h5 {[%emt 0:01:23]
} 58. Ne5 {[%emt 0:00:00]} h4 {[%emt 0:00:13]} 59. Nd7 {[%emt 0:00:00]} 1-0

[Event "44th Chess Olympiad Open 2022"]
[Site "Chennai"]
[Date "2022.08.05"]
[Round "7.44"]
[White "Meddeb, Anis"]
[Black "Rakotomaharavo, Dylan"]
[Result "1/2-1/2"]
[WhiteElo "2121"]
[BlackElo "1948"]
[Annotator "NA RC"]
[PlyCount "62"]
[EventDate "2022.??.??"]
[TimeControl "60"]

1. e4 {[%emt 0:00:04]} c5 {[%emt 0:00:07]} 2. Nf3 {[%emt 0:00:08]} Nc6 {
[%emt 0:00:17]} 3. d4 {[%emt 0:00:14]} cxd4 {[%emt 0:00:07]} 4. Nxd4 {[%emt 0:
00:00]} Nf6 {[%emt 0:00:26]} 5. Nc3 {[%emt 0:00:22]} e6 {[%emt 0:00:15]} 6. Bc4
{[%emt 0:10:58]} Bb4 {[%emt 0:03:26]} 7. O-O {[%emt 0:00:25]} O-O {[%emt 0:00:
00]} 8. Bg5 {[%emt 0:02:51]} h6 {[%emt 0:00:17]} 9. Bh4 {[%emt 0:03:12]} g5 {
[%emt 0:05:38]} 10. Nxc6 {[%emt 0:01:49]} bxc6 {[%emt 0:01:50]} 11. e5 {
[%emt 0:05:57]} Bxc3 {[%emt 0:00:56]} 12. bxc3 {[%emt 0:01:10]} gxh4 {[%emt 0:
00:00]} 13. exf6 {[%emt 0:01:56]} Qxf6 {[%emt 0:00:33]} 14. Qd6 {[%emt 0:01:18]
} Qxc3 {[%emt 0:05:39]} 15. Bd3 {[%emt 0:08:40]} f5 {[%emt 0:05:54]} 16. Rab1 {
[%emt 0:02:46]} Qf6 {[%emt 0:01:02]} 17. Rfe1 {[%emt 0:01:25]} Rf7 {[%emt 0:00:
00]} 18. Rb4 {[%emt 0:14:59]} Qe7 {[%emt 0:01:24]} 19. Qxe7 {[%emt 0:02:42]}
Rxe7 {[%emt 0:00:06]} 20. Rxh4 {[%emt 0:00:18]} Rg7 {[%emt 0:02:37]} 21. Rb1 {
[%emt 0:05:33]} a5 {[%emt 0:02:38]} 22. Rb6 {[%emt 0:00:54]} Kf7 {[%emt 0:00:
00]} 23. Rxh6 {[%emt 0:00:15]} Ke7 {[%emt 0:00:14]} 24. h4 {[%emt 0:03:43]} Kd6
{[%emt 0:00:17]} 25. Rh8 {[%emt 0:02:50]} Kc7 {[%emt 0:00:35]} 26. Rb3 {
[%emt 0:00:34]} Bb7 {[%emt 0:00:59]} 27. Rxa8 {[%emt 0:00:43]} Bxa8 {[%emt 0:
00:00]} 28. Ra3 {[%emt 0:00:59]} Kb6 {[%emt 0:00:15]} 29. Rb3+ {[%emt 0:00:09]}
Kc7 {[%emt 0:00:31]} 30. Ra3 {[%emt 0:01:14]} Kb6 {[%emt 0:01:51]} 31. Rb3+ {
[%emt 0:00:20]} Kc7 {[%emt 0:00:20]} 1/2-1/2

[Event "44th Chess Olympiad Open 2022"]
[Site "Chennai"]
[Date "2022.08.05"]
[Round "7.45"]
[White "Schartz, Alain"]
[Black "Madol Garang Panthoum"]
[Result "1-0"]
[WhiteElo "2086"]
[BlackElo "1985"]
[Annotator "NA RC"]
[PlyCount "57"]
[EventDate "2022.??.??"]
[TimeControl "60"]

1. e4 {[%emt 0:00:04]} c5 {[%emt 0:00:32]} 2. Nf3 {[%emt 0:00:11]} Nc6 {
[%emt 0:01:28]} 3. c3 {[%emt 0:02:22]} d5 {[%emt 0:00:40]} 4. exd5 {[%emt 0:00:
00]} Qxd5 {[%emt 0:00:17]} 5. d4 {[%emt 0:00:15]} Bg4 {[%emt 0:00:42]} 6. dxc5
{[%emt 0:00:29]} Qxd1+ {[%emt 0:00:39]} 7. Kxd1 {[%emt 0:00:09]} e5 {[%emt 0:
00:00]} 8. b4 {[%emt 0:02:26]} e4 {[%emt 0:04:33]} 9. h3 {[%emt 0:00:32]} Bxf3+
{[%emt 0:08:13]} 10. gxf3 {[%emt 0:00:15]} exf3 {[%emt 0:00:24]} 11. Kc2 {
[%emt 0:10:39]} a6 {[%emt 0:11:21]} 12. Bf4 {[%emt 0:05:02]} f6 {[%emt 0:08:55]
} 13. Nd2 {[%emt 0:01:52]} g5 {[%emt 0:00:52]} 14. Re1+ {[%emt 0:02:52]} Kd7 {
[%emt 0:02:12]} 15. Nc4 {[%emt 0:07:00]} gxf4 {[%emt 0:15:56]} 16. Nb6+ {
[%emt 0:00:11]} Kd8 {[%emt 0:00:26]} 17. Nxa8 {[%emt 0:02:51]} Ne5 {[%emt 0:00:
00]} 18. Re4 {[%emt 0:05:15]} Bh6 {[%emt 0:02:09]} 19. Bc4 {[%emt 0:01:47]} Ne7
{[%emt 0:01:05]} 20. Rd1+ {[%emt 0:04:41]} Kc8 {[%emt 0:04:07]} 21. Nb6+ {
[%emt 0:01:49]} Kb8 {[%emt 0:06:50]} 22. Nd7+ {[%emt 0:01:18]} Nxd7 {[%emt 0:
00:00]} 23. Rxe7 {[%emt 0:00:49]} Ne5 {[%emt 0:00:42]} 24. Bd5 {[%emt 0:00:29]}
Nc6 {[%emt 0:02:22]} 25. Bxc6 {[%emt 0:00:54]} bxc6 {[%emt 0:00:01]} 26. Rdd7 {
[%emt 0:00:57]} Bg5 {[%emt 0:00:05]} 27. Rb7+ {[%emt 0:03:41]} Kc8 {[%emt 0:00:
00]} 28. Rec7+ {[%emt 0:01:16]} Kd8 {[%emt 0:00:02]} 29. Rxc6 {[%emt 0:00:26]}
1-0

[Event "44th Chess Olympiad Open 2022"]
[Site "Chennai"]
[Date "2022.08.05"]
[Round "7.46"]
[White "Averbukh, Alex"]
[Black "Bhandari, Kshitiz"]
[Result "1-0"]
[WhiteElo "2155"]
[BlackElo "2071"]
[Annotator "NA RC"]
[PlyCount "107"]
[EventDate "2022.??.??"]
[TimeControl "60"]

1. e4 {[%emt 0:00:04]} e5 {[%emt 0:00:12]} 2. Nf3 {[%emt 0:00:06]} Nc6 {
[%emt 0:00:05]} 3. d4 {[%emt 0:00:05]} exd4 {[%emt 0:00:04]} 4. Nxd4 {[%emt 0:
00:00]} Nf6 {[%emt 0:00:53]} 5. Nxc6 {[%emt 0:00:12]} bxc6 {[%emt 0:00:04]} 6.
e5 {[%emt 0:00:04]} Qe7 {[%emt 0:00:03]} 7. Qe2 {[%emt 0:00:06]} Nd5 {[%emt 0:
00:00]} 8. h4 {[%emt 0:00:13]} d6 {[%emt 0:05:10]} 9. c4 {[%emt 0:04:49]} Nb6 {
[%emt 0:13:20]} 10. Bf4 {[%emt 0:07:39]} Ba6 {[%emt 0:04:18]} 11. Nd2 {[%emt 0:
00:00]} O-O-O {[%emt 0:14:03]} 12. O-O-O {[%emt 0:18:56]} dxe5 {[%emt 0:22:53]}
13. Qxe5 {[%emt 0:00:51]} Qxe5 {[%emt 0:00:35]} 14. Bxe5 {[%emt 0:00:10]} f6 {
[%emt 0:00:03]} 15. Bf4 {[%emt 0:04:23]} Bc5 {[%emt 0:14:29]} 16. b3 {[%emt 0:
00:00]} Rhe8 {[%emt 0:01:59]} 17. f3 {[%emt 0:10:02]} Kb8 {[%emt 0:04:35]} 18.
Ne4 {[%emt 0:07:39]} Ba3+ {[%emt 0:00:40]} 19. Kc2 {[%emt 0:00:07]} Rxd1 {
[%emt 0:00:07]} 20. Kxd1 {[%emt 0:00:06]} Bc8 {[%emt 0:04:49]} 21. Bd3 {
[%emt 0:00:38]} a5 {[%emt 0:03:15]} 22. h5 {[%emt 0:01:51]} h6 {[%emt 0:03:02]}
23. Re1 {[%emt 0:05:21]} Bb4 {[%emt 0:01:01]} 24. Re2 {[%emt 0:01:18]} Nd7 {
[%emt 0:02:12]} 25. Ng3 {[%emt 0:05:11]} Rd8 {[%emt 0:00:25]} 26. Kc2 {[%emt 0:
00:00]} Nc5 {[%emt 0:00:47]} 27. Bg6 {[%emt 0:01:38]} Ne6 {[%emt 0:00:16]} 28.
Be3 {[%emt 0:00:26]} Bf8 {[%emt 0:02:41]} 29. Rd2 {[%emt 0:00:39]} Rxd2+ {
[%emt 0:00:14]} 30. Bxd2 {[%emt 0:00:19]} a4 {[%emt 0:01:19]} 31. bxa4 {
[%emt 0:00:53]} Nd4+ {[%emt 0:00:32]} 32. Kd3 {[%emt 0:00:20]} c5 {[%emt 0:00:
00]} 33. Bc3 {[%emt 0:01:27]} Ne6 {[%emt 0:00:13]} 34. Ne2 {[%emt 0:00:28]} Bd7
{[%emt 0:00:29]} 35. a5 {[%emt 0:00:24]} Bd6 {[%emt 0:00:36]} 36. Ke3 {[%emt 0:
00:00]} Ka7 {[%emt 0:00:58]} 37. Bf5 {[%emt 0:01:24]} Ka6 {[%emt 0:00:05]} 38.
g3 {[%emt 0:00:24]} c6 {[%emt 0:00:33]} 39. Bg4 {[%emt 0:01:17]} Bc7 {[%emt 0:
00:00]} 40. Bf5 {[%emt 0:01:00]} Bxa5 {[%emt 0:00:19]} 41. Bxa5 {[%emt 0:31:05]
} Kxa5 {[%emt 0:30:07]} 42. Nf4 {[%emt 0:00:15]} Nf8 {[%emt 0:01:29]} 43. Bxd7
{[%emt 0:00:55]} Nxd7 {[%emt 0:00:00]} 44. Ne6 {[%emt 0:00:21]} Kb4 {[%emt 0:
00:00]} 45. Nxg7 {[%emt 0:00:35]} Ne5 {[%emt 0:00:36]} 46. Nf5 {[%emt 0:00:28]}
Nxc4+ {[%emt 0:00:28]} 47. Ke2 {[%emt 0:00:34]} Kc3 {[%emt 0:00:17]} 48. Nxh6 {
[%emt 0:00:31]} Kb2 {[%emt 0:00:00]} 49. Ng4 {[%emt 0:00:00]} Nd6 {[%emt 0:00:
00]} 50. h6 {[%emt 0:00:00]} c4 {[%emt 0:00:00]} 51. h7 {[%emt 0:00:00]} Nf7 {
[%emt 0:00:00]} 52. a4 {[%emt 0:00:00]} c3 {[%emt 0:00:00]} 53. Ne3 {[%emt 0:
00:00]} c2 {[%emt 0:00:00]} 54. Nxc2 {[%emt 0:00:00]} 1-0

[Event "44th Chess Olympiad Open 2022"]
[Site "Chennai"]
[Date "2022.08.05"]
[Round "7.47"]
[White "Al Harazy, Khalid"]
[Black "Zilleruelo Irizarry, Diego"]
[Result "1-0"]
[WhiteElo "2149"]
[BlackElo "2081"]
[Annotator "NA RC"]
[PlyCount "99"]
[EventDate "2022.??.??"]
[TimeControl "60"]

1. e4 {[%emt 0:00:07]} c6 {[%emt 0:00:02]} 2. d4 {[%emt 0:00:15]} d5 {[%emt 0:
00:00]} 3. exd5 {[%emt 0:00:18]} cxd5 {[%emt 0:00:02]} 4. Nf3 {[%emt 0:00:12]}
Nc6 {[%emt 0:01:04]} 5. Bd3 {[%emt 0:00:05]} Bg4 {[%emt 0:00:10]} 6. c3 {
[%emt 0:00:08]} Qc7 {[%emt 0:00:13]} 7. O-O {[%emt 0:00:28]} Nf6 {[%emt 0:00:
00]} 8. Re1 {[%emt 0:01:59]} e6 {[%emt 0:00:10]} 9. Bg5 {[%emt 0:00:12]} Be7 {
[%emt 0:00:15]} 10. Nbd2 {[%emt 0:00:05]} O-O {[%emt 0:00:52]} 11. Qa4 {
[%emt 0:00:40]} Bxf3 {[%emt 0:17:38]} 12. Nxf3 {[%emt 0:02:02]} a6 {[%emt 0:00:
00]} 13. Ne5 {[%emt 0:03:15]} b5 {[%emt 0:03:18]} 14. Qc2 {[%emt 0:05:22]} h6 {
[%emt 0:00:39]} 15. Bh4 {[%emt 0:04:45]} Rfc8 {[%emt 0:05:29]} 16. Qe2 {
[%emt 0:04:47]} Nxe5 {[%emt 0:05:28]} 17. dxe5 {[%emt 0:04:08]} Nh7 {[%emt 0:
00:00]} 18. Bxe7 {[%emt 0:16:34]} Qxe7 {[%emt 0:01:00]} 19. a4 {[%emt 0:02:11]}
Qb7 {[%emt 0:18:25]} 20. axb5 {[%emt 0:03:53]} axb5 {[%emt 0:02:53]} 21. Bxb5 {
[%emt 0:00:33]} Rxa1 {[%emt 0:02:43]} 22. Rxa1 {[%emt 0:00:20]} Rb8 {[%emt 0:
00:00]} 23. Ra5 {[%emt 0:09:59]} Qc7 {[%emt 0:02:21]} 24. Ra2 {[%emt 0:12:05]}
Nf8 {[%emt 0:00:30]} 25. Bd3 {[%emt 0:02:05]} Nd7 {[%emt 0:06:20]} 26. f4 {
[%emt 0:00:05]} Qb6+ {[%emt 0:00:39]} 27. Kf1 {[%emt 0:06:17]} Qb3 {[%emt 0:00:
00]} 28. Bb1 {[%emt 0:03:40]} Nc5 {[%emt 0:00:52]} 29. Ra3 {[%emt 0:01:06]}
Qxa3 {[%emt 0:16:20]} 30. Bh7+ {[%emt 0:00:17]} Kxh7 {[%emt 0:00:01]} 31. Qc2+
{[%emt 0:00:10]} g6 {[%emt 0:00:02]} 32. bxa3 {[%emt 0:00:09]} Rb3 {[%emt 0:00:
00]} 33. a4 {[%emt 0:04:59]} Ra3 {[%emt 0:00:24]} 34. c4 {[%emt 0:06:14]} Ra1+
{[%emt 0:00:29]} 35. Ke2 {[%emt 0:04:25]} Nxa4 {[%emt 0:07:30]} 36. c5 {
[%emt 0:01:41]} Ra3 {[%emt 0:02:32]} 37. Kd2 {[%emt 0:01:36]} d4 {[%emt 0:00:
00]} 38. c6 {[%emt 0:00:47]} Nc3 {[%emt 0:00:49]} 39. c7 {[%emt 0:00:23]} Ra8 {
[%emt 0:00:02]} 40. Qb2 {[%emt 0:00:24]} Ne4+ {[%emt 0:00:57]} 41. Kd3 {
[%emt 0:30:36]} Nc5+ {[%emt 0:04:27]} 42. Kxd4 {[%emt 0:00:00]} Na6 {[%emt 0:
00:00]} 43. Qb7 {[%emt 0:00:00]} Nxc7 {[%emt 0:00:01]} 44. Qxc7 {[%emt 0:00:00]
} Ra4+ {[%emt 0:00:14]} 45. Ke3 {[%emt 0:00:00]} Kg7 {[%emt 0:00:06]} 46. Qe7 {
[%emt 0:00:00]} Ra2 {[%emt 0:00:25]} 47. g4 {[%emt 0:00:00]} Rxh2 {[%emt 0:00:
00]} 48. f5 {[%emt 0:00:00]} gxf5 {[%emt 0:01:06]} 49. gxf5 {[%emt 0:00:00]}
Rh5 {[%emt 0:00:20]} 50. Qf6+ {[%emt 0:00:00]} 1-0